Cogmind - Beta 10.2 @@@ ROGUE MODE // 2021.12.01 @ 21:42:47 Player: arcadio Result: Destroyed by Y-45 Defender with Heavy Assault Rifle Performance ------------- Evolutions (2) 1000 Regions Visited (7) 1400 Robots Destroyed (37) 185 Value Destroyed (821) 821 Prototype IDs (6) 120 Alien Tech Used (0) 0 Bonus (322) 322 TOTAL SCORE: 3848 Bonus ------- Follower Combat Kills 32 Aligned with FarCom 300 Friendly Fire -10 Cogmind --------- Core Integrity 0/550 Matter 62/300 Energy 100/100 System Corruption 3% Temperature Cool (9) Movement Core (50) Location -8/Materials Parts ------- > --- POWER (1) -------- (None) > --- PROPULSION (4) --- (None) > --- UTILITY (3) ------ Advanced Signal Interpreter > --- WEAPON (3) ------- Makeshift Axe > --- INVENTORY (4) ---- Improved Heat Sink Disposable Heat Sink Improved Medium Laser Missile Launcher Peak State ------------ > --- POWER ------------ Heavy Ion Engine > --- PROPULSION ------- Light Treads Advanced Treads > --- UTILITY ---------- Large Storage Unit Signal Interpreter Targeting Computer > --- WEAPON ----------- Latent Energy Streamer High-powered Shotgun Flak Cannon > --- INVENTORY -------- Light Nuclear Core Light Treads Improved Heat Sink Disposable Heat Sink Core Shielding Hacking Suite Grenade Launcher Mini Grenade Launcher Missile Launcher Makeshift Axe [Rating: 28] Favorites ----------- Power Heavy Ion Engine Engine Heavy Ion Engine Propulsion Improved Treads Treads Improved Treads Utility Signal Interpreter Device Improved Heat Sink Storage Large Storage Unit Processor Signal Interpreter Weapon High-powered Shotgun Energy Gun Spread Laser Energy Cannon Light EM Pulse Cannon Ballistic Gun High-powered Shotgun Ballistic Cannon Flak Cannon Launcher Mini Grenade Launcher Slashing Weapon Makeshift Axe Build | -11 -10 -10 -9 -9 -9 -8 -8 ------- Run | Scr Mat Min Mat Min Exi Min Mat Slots Evolved 4 | . . . 2 . . . 2 Power . | . . . . . . . . Propulsion 2 | . . . . . . . 2 Utility 1 | . . . 1 . . . . Weapon 1 | . . . 1 . . . . Parts Attached 59 | 6 18 8 15 3 3 . 6 Power 7 | 1 3 1 2 . . . . Engine 7 | 1 3 1 2 . . . . Core . | . . . . . . . . Reactor . | . . . . . . . . Propulsion 12 | 2 4 1 3 1 . . 1 Treads 12 | 2 4 1 3 1 . . 1 Leg . | . . . . . . . . Wheel . | . . . . . . . . Hover . | . . . . . . . . Flight . | . . . . . . . . Utility 9 | 1 3 1 2 . 1 . 1 Device 2 | . 2 . . . . . . Storage 4 | 1 1 . 1 . 1 . . Processor 3 | . . 1 1 . . . 1 Hackware . | . . . . . . . . Protection . | . . . . . . . . Artifact . | . . . . . . . . Weapon 31 | 2 8 5 8 2 2 . 4 Energy Gun 6 | 1 1 1 3 . . . . Energy Cannon 9 | . 6 1 . . 1 . 1 Ballistic Gun 3 | 1 . . 2 . . . . Ballistic Cannon 4 | . . 1 2 1 . . . Launcher 8 | . 1 2 1 1 1 . 2 Special Weapon . | . . . . . . . . Impact Weapon . | . . . . . . . . Slashing Weapon 1 | . . . . . . . 1 Piercing Weapon . | . . . . . . . . Special Melee Weapon . | . . . . . . . . Unidentified Prototypes 2 | . . . 1 . 1 . . Parts Lost 13 | . 1 3 1 1 . 2 5 Power 2 | . . 1 . . . . 1 Propulsion 4 | . . . . 1 . 1 2 Utility 2 | . . 1 . . . . 1 Weapon 5 | . 1 1 1 . . 1 1 Highest Loss Streak 5 | . 1 3 1 1 . 2 5 Average Slot Usage (%) 92 | . 97 93 92 99 93 87 46 Engine 11 | . 14 12 10 11 11 11 6 Treads 23 | . 27 28 21 21 22 21 13 Device 4 | . 12 7 . . . . . Storage 11 | . 14 14 11 11 11 11 7 Processor 11 | . . 5 21 22 19 11 8 Energy Gun 5 | . 5 1 7 11 4 . . Energy Cannon 9 | . 16 19 . . 6 11 4 Ballistic Gun 7 | . 5 . 9 11 11 10 . Ballistic Cannon 3 | . . 3 10 10 5 . . Launcher 2 | . . . . . 1 11 3 Naked Turns . | . . . . . . . . Heaviest Build 102 | 10 30 31 36 36 102 102 99 Greatest Support 46 | 40 46 46 45 45 42 42 40 Greatest Overweight (x) 27 | . 3 . 9 1 2 4 27 Average Overweight (x) . | . . . . . . 2 1 Largest Inventory Capacity 24 | 6 10 10 16 10 24 24 24 Average Capacity 12 | 5 6 10 10 10 12 24 21 Most Carried 11 | 6 8 9 10 10 10 10 11 Average Carried 8 | 3 6 7 9 9 9 9 9 Final Capacity 24 | 6 10 10 10 10 24 24 4 Final Carried 10 | 6 8 9 10 10 9 10 4 Class Distribution -------------------- 48% | Mutant 26% | Gunner 17% | Hauler-Skirmisher 4% | Hauler-Mutant Dominant Class ---------------- Mutant | -10/Materials Mutant | -10/Mines Gunner | -9/Materials Gunner | -9/Mines Gunner | -9/Exiles Hauler-Skirmisher | -8/Mines Hauler-Mutant | -8/Materials Resources | -11 -10 -10 -9 -9 -9 -8 -8 ----------- Run | Scr Mat Min Mat Min Exi Min Mat Matter Collected 987 | 232 247 81 267 91 . 25 44 Remotely . | . . . . . . . . Salvage Created 946 | . 453 19 312 2 . . 160 Parts 60 | . 25 . 22 . . . 13 Haulers Intercepted 3 | . 1 . 2 . . . . Recyclers Shooed 1 | . . . . . . . 1 Parts Field Recycled . | . . . . . . . . Retrieved Matter . | . . . . . . . . Parts Self-Destructed . | . . . . . . . . Prevented . | . . . . . . . . Kills | -11 -10 -10 -9 -9 -9 -8 -8 ------- Run | Scr Mat Min Mat Min Exi Min Mat Combat Hostiles Destroyed 29 | . 12 2 10 2 . . 3 Guns 13 | . 9 . 2 2 . . . Cannons 5 | . 1 . 4 . . . . AOE 11 | . 2 2 4 . . . 3 Classes Destroyed 9 | . 4 1 3 . . . 1 Builder 4 | . 2 . 1 . . . 1 Tunneler 2 | . . . 2 . . . . Hauler 3 | . 1 . 2 . . . . Recycler 2 | . . . 1 . . . 1 Operator 1 | . . . . . . . 1 Swarmer 8 | . 3 . 5 . . . . Grunt 14 | . 9 . 3 . . . 2 Sentry 3 | . . . 2 . . . 1 Assembled 4 | . . 2 . 2 . . . Best Kill Streak 6 | . 4 2 6 1 . . 6 Combat Bots Only 4 | . 3 2 4 1 . . 3 Max Kills in Single Turn 3 | . 2 2 3 1 . . 2 Gunslinging . | . . . . . . . . Exploded 3 | . 1 2 3 . . . 1 Melee . | . . . . . . . . Uniques/NPCs Destroyed . | . . . . . . . . Combat | -11 -10 -10 -9 -9 -9 -8 -8 -------- Run | Scr Mat Min Mat Min Exi Min Mat Damage Taken 2650 | . 261 286 381 146 . 305 1271 Core 798 | . 25 26 76 27 . 94 550 Absorbed by Shields . | . . . . . . . . Core Remaining (%) 76 | 100 . 79 . . . 50 . Volleys Fired 75 | . 26 5 27 6 . . 11 Largest 3 | . 2 2 3 3 . . 1 Hottest 134 | . 112 112 134 134 . . 60 Shots Fired 139 | . 46 7 61 14 . . 11 Gun 85 | . 41 . 34 10 . . . Cannon 33 | . 2 5 21 3 . . 2 Launcher 21 | . 3 2 6 1 . . 9 Special . | . . . . . . . . Kinetic 71 | . 22 1 40 8 . . . Thermal 39 | . 19 . 15 5 . . . Explosive 21 | . 3 2 6 1 . . 9 Electromagnetic 8 | . 2 4 . . . . 2 Robot Hit Streak 12 | . 12 4 10 8 . . 10 Robot Miss Streak 5 | . 3 1 5 3 . . 1 Penetration Max . | . . . . . . . . Secondary Targets 2 | . 2 . . . . . . Max Gunslinging Chain 1 | . 1 . . . . . . Shots Hit Robots 99 | . 31 4 43 11 . . 10 Core Hits 82 | . 24 5 30 6 . . 17 Critical Hits . | . . . . . . . . Critical Kills . | . . . . . . . . Critical Parts Destroyed . | . . . . . . . . Melee Attacks . | . . . . . . . . Impact . | . . . . . . . . Slashing . | . . . . . . . . Piercing . | . . . . . . . . Sneak Attacks . | . . . . . . . . Combat Hostiles . | . . . . . . . . Follow-up Attacks . | . . . . . . . . Damage Inflicted 2870 | . 567 149 1254 106 . . 794 Guns 765 | . 324 . 378 63 . . . Cannons 514 | . 23 26 418 30 . . 17 Explosions 1591 | . 220 123 458 13 . . 777 Melee . | . . . . . . . . Ramming . | . . . . . . . . Kinetic 879 | . 126 8 687 58 . . . Thermal 342 | . 198 . 109 35 . . . Explosive 1485 | . 220 123 458 13 . . 671 Electromagnetic 164 | . 23 18 . . . . 123 Impact . | . . . . . . . . Slashing . | . . . . . . . . Piercing . | . . . . . . . . Highest Corruption 4 | . . 4 . . . . 3 Average Corruption 3 | . . 3 . . . . 2 Corruption Purged . | . . . . . . . . Effects 6 | . . 3 . . . . 3 Message Errors 2 | . . 2 . . . . . Matter Fused 1 | . . . . . . . 1 Energy Discharges 2 | . . 1 . . . . 1 Targeting Errors 1 | . . . . . . . 1 Overload Shots . | . . . . . . . . Overflow Damage 114 | . 18 2 74 . . . 20 Projectiles . | . . . . . . . . Explosions 114 | . 18 2 74 . . . 20 Melee . | . . . . . . . . Knockbacks 8 | . . 1 5 2 . . . Impact . | . . . . . . . . Kinetic 8 | . . 1 5 2 . . . Secondary . | . . . . . . . . Self-Inflicted Damage 111 | . . 58 . 41 . . 12 Shots 4 | . . 2 . 1 . . 1 Rammed . | . . . . . . . . Targets Rammed . | . . . . . . . . Kicked . | . . . . . . . . Crushed . | . . . . . . . . Highest Temperature 343 | . 117 39 343 176 . . 10 Average Temperature 75 | . 38 13 117 68 . . 6 Received Heat Transfer 837 | . 123 60 123 . . . 531 Effects 5 | . . . 5 . . . . Energy Bleed 1 | . . . 1 . . . . Interference 3 | . . . 3 . . . . Damage (minor) 1 | . . . 1 . . . . Siege Activations . | . . . . . . . . Robots Corrupted . | . . . . . . . . Combat Hostiles . | . . . . . . . . Parts Fried 1 | . . . . . . . 1 Impact Corruptions . | . . . . . . . . Robots Melted . | . . . . . . . . Combat Hostiles . | . . . . . . . . Parts Melted . | . . . . . . . . Heat Transferred 898 | . 592 . 261 45 . . . Parts Sabotaged . | . . . . . . . . Parts Stolen . | . . . . . . . . Parts Stripped . | . . . . . . . . Power Chain Reactions . | . . . . . . . . Missiles Intercepted . | . . . . . . . . Latent Energy Used 120 | . . . . . . . 120 LE Corruption 3 | . . . . . . . 3 Alert | -11 -10 -10 -9 -9 -9 -8 -8 ------- Run | Scr Mat Min Mat Min Exi Min Mat Peak Influence 254 | . 192 40 254 71 . 50 195 Initial 71 | . . 25 3 71 . . 19 Average 56 | . 69 19 150 45 . 1 92 Maximum Alert Level 1 | . . . 1 . . . . Low Security (%) 95 | 100 100 100 62 100 . 100 100 Level 1 4 | . . . 37 . . . . Level 2 . | . . . . . . . . Level 3 . | . . . . . . . . Level 4 . | . . . . . . . . Level 5 . | . . . . . . . . High Security . | . . . . . . . . Max Security . | . . . . . . . . Squads Dispatched 9 | . 3 1 1 . . . 4 Investigation 3 | . 2 1 . . . . . Extermination . | . . . . . . . . Reinforcement 4 | . 1 . 1 . . . 2 Assault . | . . . . . . . . Garrison 2 | . . . . . . . 2 Intercept . | . . . . . . . . Construction Impeded 1 | . . . . . . . 1 Haulers Reinforced . | . . . . . . . . Stealth | -11 -10 -10 -9 -9 -9 -8 -8 --------- Run | Scr Mat Min Mat Min Exi Min Mat Distress Signals 7 | . 1 1 1 . . . 4 Communications Jammed . | . . . . . . . . Distress Signals . | . . . . . . . . Times Spotted 79 | . 24 6 21 5 . 8 15 Peak Tracking Total 9 | . 3 9 6 3 . 4 7 Tactical Retreats 7 | . . 2 2 . . 2 1 Traps | -11 -10 -10 -9 -9 -9 -8 -8 ------- Run | Scr Mat Min Mat Min Exi Min Mat Traps Triggered 7 | . 4 . 3 . . . . Indirectly . | . . . . . . . . Trap Hack Attempts . | . . . . . . . . Triggered . | . . . . . . . . Disarmed . | . . . . . . . . Reprogrammed . | . . . . . . . . Reused . | . . . . . . . . Traps Extracted . | . . . . . . . . Installed . | . . . . . . . . Triggered . | . . . . . . . . Machines | -11 -10 -10 -9 -9 -9 -8 -8 ---------- Run | Scr Mat Min Mat Min Exi Min Mat Machines Disabled 1 | . . . 1 . . . . Max in Single Turn 1 | . . . 1 . . . . Machines Sabotaged . | . . . . . . . . Garrisons Compromised . | . . . . . . . . Overloaded Fab Kills . | . . . . . . . . Fab Network Shutdowns . | . . . . . . . . Hacking | -11 -10 -10 -9 -9 -9 -8 -8 --------- Run | Scr Mat Min Mat Min Exi Min Mat Machines Accessed 10 | . 6 2 1 . 1 . . Terminals 7 | . 6 1 . . . . . Fabricators . | . . . . . . . . Repair Stations . | . . . . . . . . Recycling Units . | . . . . . . . . Scanalyzers 1 | . . . 1 . . . . Garrison Access . | . . . . . . . . Total Hacks 50 | . 19 3 19 . 9 . . Successful 37 | . 10 1 17 . 9 . . Failed 13 | . 9 2 2 . . . . Catastrophic 1 | . 1 . . . . . . Database Lockouts . | . . . . . . . . Manual 14 | . 11 2 . . 1 . . Terminals 21 | . 19 2 . . . . . Fabricators . | . . . . . . . . Repair Stations . | . . . . . . . . Recycling Units . | . . . . . . . . Scanalyzers 19 | . . . 19 . . . . Garrison Access . | . . . . . . . . Terminal Hacks 17 | . 7 1 . . 9 . . Record 10 | . 1 . . . 9 . . Prototype ID Bank 2 | . 2 . . . . . . Open Door 1 | . . 1 . . . . . Alert Level 2 | . 2 . . . . . . Zone Layout 2 | . 2 . . . . . . Fabricator Hacks . | . . . . . . . . Repair Station Hacks . | . . . . . . . . Recycling Unit Hacks . | . . . . . . . . Scanalyzer 17 | . . . 17 . . . . Insert Component 8 | . . . 8 . . . . Analyze 9 | . . . 9 . . . . Garrison Access Hacks . | . . . . . . . . Unauthorized Hacks 3 | . 3 . . . . . . Terminals 3 | . 3 . . . . . . Botnet 3 | . 3 . . . . . . Fabricators . | . . . . . . . . Repair Stations . | . . . . . . . . Recycling Units . | . . . . . . . . Scanalyzers . | . . . . . . . . Garrison Access . | . . . . . . . . Data Cores Recovered . | . . . . . . . . Used . | . . . . . . . . Hacking Detections 8 | . 6 1 1 . . . . Full Trace Events . | . . . . . . . . Feedback Events . | . . . . . . . . Feedback Blocked . | . . . . . . . . Robot Schematics Acquired . | . . . . . . . . Robots Built . | . . . . . . . . Matter . | . . . . . . . . Time . | . . . . . . . . Total Robot Build Rating . | . . . . . . . . Part Schematics Acquired 7 | . . . 7 . . . . Parts Built . | . . . . . . . . Matter . | . . . . . . . . Time . | . . . . . . . . Total Part Build Rating . | . . . . . . . . Parts Repaired . | . . . . . . . . Time . | . . . . . . . . Parts Recycled . | . . . . . . . . Recycled Matter . | . . . . . . . . Retrieved Matter . | . . . . . . . . Retrieved Components . | . . . . . . . . Parts Scanalyzed 8 | . . . 8 . . . . Part Schematics Acquired 7 | . . . 7 . . . . Parts Damaged . | . . . . . . . . Bothacking | -11 -10 -10 -9 -9 -9 -8 -8 ------------ Run | Scr Mat Min Mat Min Exi Min Mat Used RIF Installer . | . . . . . . . . Robots Hacked . | . . . . . . . . Non-combat . | . . . . . . . . Combat . | . . . . . . . . Robot Hacks Applied . | . . . . . . . . Relay Couplers Released . | . . . . . . . . Robots Rewired . | . . . . . . . . Allies Hacked . | . . . . . . . . Hacks Repelled . | . . . . . . . . Allies | -11 -10 -10 -9 -9 -9 -8 -8 -------- Run | Scr Mat Min Mat Min Exi Min Mat Total Allies 1 | . . 1 . . . . . Largest Group 1 | . . 1 1 . . . . Highest-Rated Group 31 | . . 31 31 . . . . Highest-Rated Ally 31 | . . 31 31 . . . . Total Orders . | . . . . . . . . Ally Attacks 14 | . . . 14 . . . . Total Damage 230 | . . . 230 . . . . Kills 2 | . . . 2 . . . . Allies Corrupted . | . . . . . . . . Allies Melted . | . . . . . . . . Intel | -11 -10 -10 -9 -9 -9 -8 -8 ------- Run | Scr Mat Min Mat Min Exi Min Mat Robot Analysis Total . | . . . . . . . . Derelict Logs Recovered 2 | . . 1 . 1 . . . Drone Launches . | . . . . . . . . Drone Recoveries . | . . . . . . . . Exploration | -11 -10 -10 -9 -9 -9 -8 -8 ------------- Run | Scr Mat Min Mat Min Exi Min Mat Turns Passed 4485 | 86 1316 312 487 780 470 833 201 Spaces Moved 2440 | 55 714 180 232 444 292 429 94 Core 59 | 14 2 . 4 . . . 39 Treads 2381 | 41 712 180 228 444 292 429 55 Legs . | . . . . . . . . Wheels . | . . . . . . . . Hover . | . . . . . . . . Flight . | . . . . . . . . Fastest Speed 50 | 50 160 152 152 152 152 192 50 Average Speed 163 | 132 160 157 157 152 157 192 166 Slowest Speed 1400 | 160 200 160 500 165 192 240 1400 Overloaded Moves . | . . . . . . . . Propulsion Burnouts . | . . . . . . . . Robots Hopped . | . . . . . . . . Cave-ins Triggered . | . . . . . . . . Exploration Rate (%) 49 | 3 93 46 18 67 62 88 16 Regions Visited 7 Branch Regions 4 Pre-discovered Areas . | . . . . . . . . Known Exits Taken 4 | . . . 1 1 1 1 . Unknown Exits Taken 3 | 1 1 1 . . . . . Scrap Searched 3 | . . 1 . 1 . 1 . Spaces Dug . | . . . . . . . . Terrain Destroyed 136 | . 27 28 25 6 . . 50 Melee . | . . . . . . . . Projectile . | . . . . . . . . AOE 136 | . 27 28 25 6 . . 50 Terrain Rammed . | . . . . . . . . Walls Destroyed . | . . . . . . . . Machines Disabled . | . . . . . . . . Actions | -11 -10 -10 -9 -9 -9 -8 -8 --------- Run | Scr Mat Min Mat Min Exi Min Mat Total 2814 | 66 846 200 300 536 303 436 127 Wait 184 | . 67 2 17 81 . 7 10 Move 2433 | 54 713 179 231 443 291 428 94 Hop . | . . . . . . . . Pick Up 30 | 6 7 2 5 2 5 1 2 Fast Attach 38 | 6 14 3 11 . 3 . 1 Attach 10 | . 1 3 2 1 . . 3 Detach 5 | . 1 2 . . . . 2 Swap 11 | . 3 2 2 2 . . 2 Drop 28 | . 14 2 5 1 4 . 2 Fire 75 | . 26 5 27 6 . . 11 Melee . | . . . . . . . . Ram . | . . . . . . . . Kick . | . . . . . . . . Crush . | . . . . . . . . Escape Stasis . | . . . . . . . . Rewire . | . . . . . . . . Trap . | . . . . . . . . Miscellaneous . | . . . . . . . . Route ------- -11/Scrapyard -10/Materials (discovered 4 exits: *Mat x3 / *Min) -10/Mines -9/Materials -9/Mines (discovered 2 exits: *Mat / *Exi) -9/Exiles -8/Mines -8/Materials History --------- Turn | Location | Event 3 | -11/Scrapyard | Discovered new exit (range 15) 87 | -11/Scrapyard | Entered Materials 322 | -10/Materials | Build established: Mutant 335 | -10/Materials | Discovered new exit (range 16) 523 | -10/Materials | Discovered new exit (range 13) 886 | -10/Materials | Discovered new exit (range 15) 1050 | -10/Materials | Discovered new exit (range 16) 1403 | -10/Materials | Entered Mines 1541 | -10/Mines | Assembled infested the area 1606 | -10/Mines | Lost 3 parts (1p1u1w) 1622 | -10/Mines | Met a Derelict shopkeep closing up shop 1626 | -10/Mines | Learned Materials terminal intel 1702 | -10/Mines | Discovered new exit (range 6) 1707 | -10/Mines | Escorted by a lone wolf Derelict 1715 | -10/Mines | Entered Materials 1715 | -9/Materials | Accompanied by 1 ally 1715 | -9/Materials | Evolved 2 slots: Utility x1, Weapon x1 1716 | -9/Materials | Loaded intel: 12 terminal locations 2023 | -9/Materials | Discovered new exit (range 7) 2201 | -9/Materials | Identified exit to Mines 2202 | -9/Materials | Entered Mines 2391 | -9/Mines | Build established: Gunner 2408 | -9/Mines | Deemed a non-threat by the Exiles lab entrance 2409 | -9/Mines | Discovered new exit (range 5) 2414 | -9/Mines | Identified exit to Exiles 2446 | -9/Mines | A weapon hastily lodged in a ceiling crevice suddenly fell to the ground 2480 | -9/Mines | Learned Materials terminal intel 2499 | -9/Mines | YI-UF0 nonchalantly dropped a Grenade Launcher on the ground 2608 | -9/Mines | Excavation squad dispatched 2608 | -9/Mines | A large section of the Mines collapsed 2762 | -9/Mines | Discovered new exit (range 9) 2776 | -9/Mines | Identified exit to Materials 2982 | -9/Mines | Entered Exiles 3022 | -9/Exiles | Met 8R-AWN 3048 | -9/Exiles | Met EX-HEX 3130 | -9/Exiles | Met EX-BIN 3154 | -9/Exiles | Aligned with FarCom system 3156 | -9/Exiles | Given EX-Vault access code 3191 | -9/Exiles | Opened EX-Vault 3199 | -9/Exiles | Found Prototype Energy Cannon 3199 | -9/Exiles | Identified Latent Energy Streamer 3233 | -9/Exiles | Warned to stay clear of 0b10 Research branches 3278 | -9/Exiles | Met EX-DEC 3425 | -9/Exiles | Discovered new exit (range 14) 3450 | -9/Exiles | Identified exit to Mines 3452 | -9/Exiles | Left Exiles lab with Latent Energy Streamer 3452 | -9/Exiles | Entered Mines 3622 | -8/Mines | Discovered exit to Materials (range 10) 3753 | -8/Mines | Build established: Hauler-Skirmisher 4285 | -8/Mines | Entered Materials 4285 | -8/Materials | Evolved 2 slots: Propulsion x2 4286 | -8/Materials | Loaded intel: 12 terminal locations 4374 | -8/Materials | Garrison activated, responded to threat 4454 | -8/Materials | Core integrity fell below 50% 4465 | -8/Materials | Core integrity fell below 20% 4486 | -8/Materials | Destroyed by Y-45 Defender with Heavy Assault Rifle Last Messages --------------- 04447_ U-05 Engineer lays Concrete. 04449_ U-05 Engineer builds a Wall. 04450_ The unstable cave ceiling collapses. 04450_ U-05 Engineer builds a Wall. 04453_ U-05 Engineer lays Concrete. 04454_ U-05 Engineer builds a Wall. 04454_ R-06 Scavenger destroyed. 04454_ U-05 Engineer lays Concrete. 04455_ U-05 Engineer builds a Wall. 04456_ Humpback destroyed. 04457_ U-05 Engineer lays Concrete. 04462_ K-01 Serf destroyed. 04463_ U-05 Engineer lays Concrete. 04464_ K-01 Serf collects debris. 04465_ U-05 Engineer lays Concrete. 04466_ Acquired 11 matter. 04473_ System corrupted: Energy discharge (-31). 04473_ Dropped Hacking Suite. 04475_ Acquired Imp. Medium Laser. 04485_ W-25 Informer sends out distress signal. Map ----- +----------------------------------------------------+ | ?????????????????????????????????????????????????? | | ?????????????????????????????????????????????????? | | ?????????????????????????????????????????????????? | | ?????????????????????????????????????????????????? | | ?????????????????????????????????????????????????? | | ?????????????????????????????????????????????????? | | ?????????????????????????????????????????????????? | | ??????????????????????????g ???????????????????? | | ????????????????????????? g ??????????????????? | | ????????????????????????? ?????????????????T? | | ????????????????????????? w??????????????????? | | ?????????????????????????#w ??????????????????? | | ?????????????????????????# ??????""??????????? | | ?????????????????????????# #??????T"??????????? | | ?????????????????????????+ #??????""??????????? | | ?????????????????????????# #??????????????????? | | ?????????????????????????# #??????????????????? | | ?????????????????????????# #??????????????????? | | ?????????????????????????# #??????????????????? | | ?????????????????????????# #??????????????????? | | ?????????????????????????# #???????Y??????????? | | ?????????????????????????# #??????????????????? | | ?????????????????????????# #???????????? ?????? | | ?????????????????????????# #??????????? #????? | | ?????????????????######### ########### #????? | | ?????????? @ #????? | | ?????????????????######## / #????? | | ????????????????????????# ]]] #????? | | ????????????????????????# ]]] #????? | | ????????????????????????#r ]] """ #????? | | ???????????????#### #???## """""? #????? | | ???????????????# ! ??# """"" #????? | | ???????????????#!! #Yw """"" #????? | | ???????????????#!! + """ #????? | | ???????????????#! # #????? | | ???????????????? """ # r #????? | | ???????????????? ? ? R"?# +????? | | ??????????????????????"??# #????? | | ?????????????????????????# m #????? | | ?????????????????????????# #????? | | ???????"?????????????????########g #????? | | ???????T????????????????????????#Y #????? | | ???????"????????????????????????#Y #????? | | ?????????????????????????#####??# #????? | | ???????????????#?????????# [??# #????? | | ???????????????# ????????# ??# #########????? | | ???????????????# ???????# "" # #????????????? | | ????########/####/###????# Y" + #????????????? | | ???? ###### "" # #????????????? | | ???? # ## ??# #????????????? | +----------------------------------------------------+ Best States ------------- Heat Dissipation 39 Energy Generation 14 Energy Capacity 280 Matter Stores 300 Matter Capacity 300 Sight Range 16 Terrain Scan Density 10 Additional Mass Support 6 Evasion (%) 50 Targeting Accuracy 5 Recoil Reduction 2 Item Schematics ----------------- Mni. Grenade Launcher | -9/Materials | Scanalyzed Imp. Heat Sink | -9/Materials | Scanalyzed Core Shielding | -9/Materials | Scanalyzed Lgt. Nuclear Core | -9/Materials | Scanalyzed Hacking Suite | -9/Materials | Scanalyzed Disposable Heat Sink | -9/Materials | Scanalyzed Missile Launcher | -9/Materials | Scanalyzed Robot Schematics ------------------ None Fabricated ------------ Nothing Alien Tech Used ----------------- None Achievements -------------- None Challenges ------------ None Game ------ Seed TransmissionRocketEngine Manual? 0 Play Time 00:54:10 Cumulative 23.9 hours Start 2021.05.31 @ 20:24:47 End 2021.12.01 @ 21:42:47 Sessions 6 Manual Loads 0 Difficulty Rogue Special Mode None Game No. 24 Rogue 24 Adventurer 0 Explorer 0 Win Type - Total 0 Types 0/0/0/0/0/0/0/0/0 Lore% 21 Gallery% 27 Achievement% 23 Wizard Run 0 Options --------- ASCII 0 Keyboard 0 Movement Mouse Keybinds 0 Fullscreen 1 Font 18/Terminus Map View 76x50 Tactical HUD 1 Map Filters NONE Filters NONE Steam 1 RUN: e855bc6d-a5d0-4577-aad4-e7af81cc56b4